bitfinex/quotes_BTCUSD_20241128
["timestamp","ask_amount","ask_price","bid_price","bid_amount"]
[1732798878551,0.29174011,95452.0,95451.0,6e-07]
[1732798878766,0.29007758,95452.0,95451.0,6e-07]
[1732798878982,0.26003669,95452.0,95451.0,6e-07]
[1732798879735,0.27164931,95452.0,95451.0,6e-07]
[1732798879973,0.302399,95452.0,95451.0,6e-07]
[1732798880188,0.42164931,95452.0,95451.0,6e-07]
[1732798880411,0.46173328,95452.0,95451.0,6e-07]
[1732798881098,0.43364931,95452.0,95451.0,6e-07]
[1732798881331,0.45471468,95452.0,95451.0,6e-07]
[1732798881571,0.45171468,95452.0,95451.0,6e-07]
[1732798881999,0.45971468,95452.0,95451.0,6e-07]
[1732798882498,0.45964834,95452.0,95451.0,6e-07]
[1732798882962,0.45964834,95452.0,95451.0,0.0752006]
[1732798882963,0.25558297,95452.0,95451.0,0.0752006]
[1732798883406,0.14112514,95452.0,95451.0,0.0752006]
[1732798883872,0.121764,95452.0,95451.0,0.0752006]
[1732798884087,0.104764,95452.0,95451.0,0.0752006]
[1732798884572,0.13312514,95452.0,95451.0,0.0752006]
[1732798884782,0.12412514,95452.0,95451.0,0.0752006]
[1732798885292,0.13012514,95452.0,95451.0,0.0752006]
[1732798885745,0.110764,95452.0,95451.0,0.0752006]
[1732798886467,0.12580198,95452.0,95451.0,0.0752006]
[1732798886896,0.11642653,95452.0,95451.0,0.0752006]
[1732798887176,0.11042653,95452.0,95451.0,0.0752006]
[1732798887417,0.10642653,95452.0,95451.0,0.0752006]
[1732798887709,0.107764,95452.0,95451.0,0.0752006]
[1732798888159,0.10942653,95452.0,95451.0,0.0752006]
[1732798888372,0.11442653,95452.0,95451.0,0.0752006]
[1732798889252,0.11442653,95452.0,95451.0,6e-07]
[1732798889701,0.11242653,95452.0,95451.0,6e-07]
[1732798889911,0.10942653,95452.0,95451.0,0.0017272]
[1732798890162,0.11542653,95452.0,95451.0,0.0017272]
[1732798890389,0.11242653,95452.0,95451.0,0.0017272]
[1732798890601,0.10642653,95452.0,95451.0,0.0017272]
[1732798890819,0.22227174,95452.0,95451.0,0.0017272]
[1732798891080,0.30707993,95452.0,95451.0,2e-07]
[1732798891325,0.30707993,95452.0,95435.0,2e-07]
[1732798891326,0.137782,95436.0,95435.0,2e-07]
[1732798891549,0.137782,95436.0,95411.0,0.0004]
[1732798891550,0.0108194,95415.0,95411.0,0.0004]
[1732798891786,0.0108194,95415.0,95413.0,0.0476]
[1732798892011,0.209571,95433.0,95414.0,0.17994521]
[1732798892242,0.104803,95417.0,95415.0,0.00185484]
[1732798892467,0.209582,95428.0,95416.0,0.10284521]
[1732798892753,0.104803,95417.0,95416.0,0.10470005]
[1732798892974,0.0099193,95436.0,95416.0,0.10284521]
[1732798892975,0.104797,95423.0,95416.0,0.10284521]
[1732798893189,0.104802,95418.0,95417.0,0.0817]
[1732798893402,0.209578,95430.0,95417.0,0.0817]
[1732798893625,0.104801,95419.0,95417.0,0.0817]
[1732798893843,0.209582,95428.0,95417.0,0.0817]
[1732798894108,0.209578,95430.0,95417.0,0.0817]
[1732798894326,0.00166253,95436.0,95417.0,0.0817]
[1732798894539,0.001,95418.0,95417.0,0.0817]
[1732798894761,0.104799,95421.0,95417.0,0.0817]
[1732798895009,0.104802,95418.0,95417.0,0.0817]
[1732798895888,0.209591,95424.0,95417.0,0.0817]
[1732798896102,0.209576,95431.0,95417.0,0.0817]
[1732798896103,0.00166253,95426.0,95417.0,0.0817]
[1732798896320,0.209548,95444.0,95417.0,0.0817]
[1732798896321,0.1048,95420.0,95417.0,0.0817]
[1732798896540,0.00166253,95429.0,95417.0,0.0817]
[1732798896758,0.00166253,95436.0,95417.0,0.0817]
[1732798896990,0.001,95430.0,95417.0,0.0817]
[1732798897216,0.104802,95418.0,95417.0,0.0817]
[1732798897956,0.104799,95421.0,95417.0,0.0817]
[1732798898188,0.104802,95418.0,95417.0,0.0817]
[1732798898416,0.00166253,95427.0,95417.0,0.0817]
[1732798898644,0.104802,95418.0,95417.0,0.0817]
[1732798899104,0.001,95429.0,95417.0,0.0817]
[1732798899317,0.00166253,95428.0,95417.0,0.0817]
[1732798899525,0.00166253,95427.0,95417.0,0.0817]
[1732798899751,0.209588,95425.0,95417.0,0.0817]
[1732798899981,0.104799,95421.0,95417.0,0.0817]
[1732798900203,0.08158679,95511.0,95417.0,0.0817]
[1732798900566,0.104789,95430.0,95424.0,0.104795]
[1732798901248,0.0098637,95443.0,95422.0,0.290095]
[1732798901249,0.104792,95428.0,95422.0,0.185296]
[1732798901485,0.209571,95433.0,95422.0,0.0805]
[1732798901708,0.104792,95427.0,95422.0,0.0805]
[1732798901984,0.104793,95426.0,95422.0,0.0805]
[1732798902204,0.209577,95430.0,95422.0,0.0805]
[1732798902205,0.104796,95423.0,95422.0,0.0805]
[1732798903755,0.104794,95425.0,95422.0,0.0805]
[1732798904203,0.104793,95426.0,95422.0,0.0805]
[1732798904419,0.209582,95428.0,95422.0,0.0805]
[1732798904630,0.104794,95425.0,95422.0,0.0805]
[1732798904840,0.209576,95431.0,95422.0,0.0805]
[1732798905077,0.105793,95426.0,95422.0,0.0805]
[1732798905289,0.209576,95431.0,95422.0,0.19677763]
[1732798905533,0.10479,95429.0,95422.0,0.09198063]
[1732798905758,0.209576,95431.0,95422.0,0.09198063]
[1732798905759,0.104793,95426.0,95422.0,0.09198063]
[1732798905983,0.104792,95427.0,95422.0,0.19677763]
[1732798906214,0.104792,95427.0,95422.0,0.09198063]
[1732798906486,0.001,95428.0,95423.0,0.209591]
[1732798906713,0.209548,95444.0,95423.0,0.209591]
[1732798906714,0.209548,95444.0,95424.0,0.15]
[1732798906950,0.209548,95444.0,95423.0,0.14814521]
[1732798906951,0.209547,95444.0,95433.0,0.0798]
[1732798907167,0.104782,95436.0,95433.0,0.0798]
[1732798907399,0.104782,95436.0,95433.0,0.18264521]
[1732798907623,0.104784,95434.0,95433.0,0.18264521]
[1732798907854,0.104784,95434.0,95433.0,0.0798]
[1732798910176,0.209545,95445.0,95433.0,0.0798]
[1732798910384,0.104784,95434.0,95433.0,0.0798]
[1732798910860,0.104784,95434.0,95433.0,0.0910435]
[1732798912022,0.105784,95434.0,95433.0,0.0910435]
[1732798912887,0.104784,95434.0,95433.0,0.0910435]
[1732798913100,0.105784,95434.0,95433.0,0.0910435]
[1732798913339,0.104784,95434.0,95433.0,0.0910435]
[1732798913557,0.209557,95440.0,95433.0,0.0910435]
[1732798913768,0.001,95434.0,95433.0,0.29867371]
[1732798914733,0.0018636,95434.0,95433.0,0.29867371]
[1732798914967,0.0008636,95434.0,95433.0,0.29867371]
[1732798916058,0.0018636,95434.0,95433.0,0.29867371]
[1732798916281,0.0008636,95434.0,95433.0,0.29867371]
[1732798916717,0.0018636,95434.0,95433.0,0.29867371]
[1732798916928,0.0028636,95434.0,95433.0,0.29867371]
[1732798917164,0.0028636,95434.0,95433.0,0.19388871]
[1732798917165,0.1076476,95434.0,95433.0,0.19388871]
[1732798917380,0.1076476,95434.0,95426.0,0.0825]
[1732798917381,0.104792,95427.0,95426.0,0.0825]
[1732798917858,0.104792,95427.0,95424.0,0.0938357]
[1732798917859,0.00166253,95428.0,95425.0,0.0938357]
[1732798918070,0.00166253,95428.0,95417.0,0.0825]
[1732798918071,0.104804,95416.0,95411.0,0.0942357]
[1732798918304,0.104804,95416.0,95411.0,0.0004]
[1732798918530,0.10646653,95416.0,95411.0,0.0004]
[1732798919908,0.20931174,95416.0,95411.0,0.0004]
[1732798920123,0.28151174,95416.0,95411.0,0.0004]
[1732798920382,0.35092058,95416.0,95411.0,0.0004]
[1732798921127,0.35092058,95416.0,95415.0,2e-07]
[1732798921337,0.28984921,95416.0,95415.0,2e-07]
[1732798921814,0.29084921,95416.0,95415.0,2e-07]
[1732798922040,0.28984921,95416.0,95415.0,2e-07]
[1732798922299,0.28984921,95416.0,95411.0,2e-07]
[1732798922300,0.114808,95412.0,95411.0,2e-07]
[1732798922529,0.24231574,95412.0,95411.0,2e-07]
[1732798922757,0.24065321,95412.0,95411.0,2e-07]
[1732798923226,0.23065321,95412.0,95411.0,2e-07]
[1732798923503,0.24065321,95412.0,95411.0,2e-07]
[1732798924787,0.24965321,95412.0,95411.0,2e-07]
[1732798925497,0.34456753,95412.0,95411.0,2e-07]
[1732798925962,0.35356753,95412.0,95411.0,2e-07]
[1732798926180,0.34456753,95412.0,95411.0,2e-07]
[1732798926619,0.34456753,95412.0,95411.0,9e-07]
[1732798926868,0.24965321,95412.0,95411.0,9e-07]
[1732798927343,0.24065321,95412.0,95411.0,9e-07]
[1732798927553,0.47565321,95412.0,95411.0,9e-07]
[1732798927774,0.48465321,95412.0,95411.0,9e-07]
[1732798927992,0.47565321,95412.0,95411.0,9e-07]
[1732798928210,0.51822049,95412.0,95411.0,9e-07]
[1732798928480,0.53622049,95412.0,95411.0,9e-07]
[1732798928701,0.52722049,95412.0,95411.0,9e-07]
[1732798928950,0.52822049,95412.0,95411.0,9e-07]
[1732798929184,0.52822049,95412.0,95391.0,9e-07]
[1732798929185,0.10483,95392.0,95391.0,9e-07]
[1732798929464,0.20933774,95392.0,95391.0,9e-07]
[1732798929935,0.23233774,95392.0,95391.0,9e-07]
[1732798930144,0.23067521,95392.0,95391.0,9e-07]
[1732798931132,0.15,95390.0,95383.0,1e-07]
[1732798931347,0.104839,95384.0,95383.0,1e-07]
[1732798931566,0.20934674,95384.0,95383.0,1e-07]
[1732798932642,0.21834674,95384.0,95383.0,1e-07]
[1732798932882,0.23785891,95384.0,95383.0,1e-07]
[1732798933109,0.21668421,95384.0,95383.0,1e-07]
[1732798933352,0.31951567,95384.0,95383.0,1e-07]
[1732798933587,0.34251567,95384.0,95383.0,1e-07]
[1732798933820,0.35362156,95384.0,95383.0,1e-07]
[1732798934088,0.104852,95372.0,95371.0,1e-07]
[1732798934319,0.20769721,95372.0,95371.0,1e-07]
[1732798934529,0.25209966,95372.0,95371.0,1e-07]
[1732798934762,0.25043713,95372.0,95371.0,1e-07]
[1732798935436,0.25443713,95372.0,95371.0,1e-07]
[1732798935640,0.27743713,95372.0,95371.0,1e-07]
[1732798935847,0.28343713,95372.0,95371.0,1e-07]
[1732798936296,0.49984674,95372.0,95371.0,1e-07]
[1732798936734,0.57554674,95372.0,95371.0,1e-07]
[1732798936947,0.57154674,95372.0,95371.0,1e-07]
[1732798937176,0.57154674,95372.0,95355.0,0.0017246]
[1732798937177,0.12787,95356.0,95355.0,7e-07]
[1732798937396,0.23237774,95356.0,95355.0,7e-07]
[1732798937620,0.23071521,95356.0,95355.0,7e-07]
[1732798938284,0.104874,95352.0,95351.0,7e-07]
[1732798938491,0.20938174,95352.0,95351.0,7e-07]
[1732798938834,0.31854201,95352.0,95351.0,7e-07]
[1732798939151,0.31687948,95352.0,95351.0,7e-07]
[1732798940368,0.104896,95332.0,95321.0,0.001726]
[1732798940598,0.20774121,95332.0,95321.0,0.001726]
[1732798940826,0.27213546,95332.0,95321.0,0.001726]
[1732798941051,0.27047293,95332.0,95321.0,0.001726]
[1732798941276,0.20774121,95332.0,95321.0,0.001726]
[1732798941488,0.20940374,95332.0,95321.0,0.001726]
[1732798942165,0.22092831,95332.0,95321.0,0.001726]
[1732798942388,0.21926578,95332.0,95321.0,0.001726]
[1732798944033,0.24226578,95332.0,95331.0,1e-06]
[1732798944281,0.33042786,95332.0,95331.0,1e-06]
[1732798946208,0.23926131,95296.0,95295.0,0.06939773]
[1732798946466,0.12794,95292.0,95291.0,7.3e-07]
[1732798946690,0.23244774,95292.0,95291.0,7.3e-07]
[1732798946912,0.32611009,95292.0,95291.0,7.3e-07]
[1732798947381,0.104962,95272.0,95271.0,0.0004]
[1732798947877,0.10662453,95272.0,95271.0,0.0004]
[1732798948772,0.11162453,95272.0,95271.0,0.0004]
[1732798950142,0.10662453,95272.0,95271.0,0.0004]
[1732798950365,0.11162453,95272.0,95271.0,0.0004]
[1732798950831,0.11962453,95272.0,95271.0,0.0102965]
[1732798951041,0.104962,95272.0,95271.0,0.0817]
[1732798951286,0.115962,95272.0,95271.0,0.0825642]
[1732798951868,0.11062453,95272.0,95271.0,0.0012642]
[1732798951919,0.11962453,95272.0,95271.0,0.0012642]
[1732798952177,0.11062453,95272.0,95271.0,0.0012642]
[1732798952512,0.10662453,95272.0,95271.0,0.0012642]
[1732798952738,0.11262453,95272.0,95271.0,0.0012642]
[1732798953913,0.11762453,95272.0,95271.0,0.0012642]
[1732798954134,0.11162453,95272.0,95271.0,0.0012642]
[1732798954611,0.11362453,95272.0,95271.0,0.0012642]
[1732798955295,0.10862453,95272.0,95271.0,0.0012642]
[1732798955545,0.10662453,95272.0,95271.0,0.0012642]
[1732798955785,0.10962453,95272.0,95271.0,0.0012642]
[1732798956028,0.10662453,95272.0,95271.0,0.0012642]
[1732798956917,0.11062453,95272.0,95271.0,0.0012642]
[1732798957365,0.11562453,95272.0,95271.0,0.0012642]
[1732798957583,0.10662453,95272.0,95271.0,0.0012642]
[1732798957794,0.10862453,95272.0,95271.0,0.0012642]
[1732798958013,0.11162453,95272.0,95271.0,0.0012642]
[1732798960572,0.18576098,95272.0,95271.0,0.0012642]
[1732798961016,0.18376098,95272.0,95271.0,0.0012642]
[1732798961229,0.18076098,95272.0,95271.0,0.0012642]
[1732798961461,0.18876098,95272.0,95271.0,0.0012642]
[1732798961885,0.18476098,95272.0,95271.0,0.0012642]
[1732798962315,0.18776098,95272.0,95271.0,0.0012642]
[1732798962752,0.11362453,95272.0,95271.0,0.0012642]
[1732798968375,0.00866253,95272.0,95271.0,0.0012642]
[1732798968841,0.11362453,95272.0,95271.0,0.0012642]
[1732798971948,0.007,95272.0,95271.0,0.1522272]
[1732798972190,0.10495,95284.0,95273.0,0.209922]
[1732798972439,0.00166253,95283.0,95271.0,0.1286642]
[1732798972679,0.209891,95288.0,95271.0,0.1286642]
[1732798972926,0.10495,95284.0,95273.0,0.209923]
[1732798973204,0.10661253,95283.0,95277.0,0.104956]
[1732798973445,0.00166253,95283.0,95271.0,0.1286642]
[1732798973694,0.104948,95285.0,95277.0,0.104956]
[1732798973936,0.00166253,95284.0,95277.0,0.104956]
[1732798974177,0.00166253,95284.0,95273.0,0.209923]
[1732798974419,0.104949,95284.0,95276.0,0.104958]
[1732798974666,0.00166253,95283.0,95277.0,0.104956]
[1732798974902,0.008,95283.0,95272.0,0.209925]
[1732798975158,0.104948,95285.0,95274.0,0.20992]
[1732798975406,0.00166253,95284.0,95276.0,0.104957]
[1732798975649,0.10661153,95284.0,95276.0,0.104957]
[1732798975890,0.00166253,95284.0,95272.0,0.209925]
[1732798976136,0.001,95283.0,95277.0,0.109956]
[1732798976400,0.001,95283.0,95277.0,0.104956]
[1732798976868,0.001,95283.0,95276.0,0.006]
[1732798977109,0.104957,95277.0,95276.0,0.006]
[1732798977358,0.104957,95277.0,95276.0,0.004]
[1732798977610,0.209903,95282.0,95276.0,0.004]
[1732798977844,0.314857,95281.0,95277.0,0.003]
[1732798978092,0.00166253,95280.0,95271.0,0.0826642]
[1732798978339,0.104962,95272.0,95271.0,0.0826642]
[1732798978578,0.209922,95274.0,95271.0,0.0826642]
[1732798978841,0.10496,95274.0,95271.0,0.0826642]
[1732798979082,0.209914,95277.0,95271.0,0.0826642]
[1732798979299,0.104961,95274.0,95271.0,0.0826642]
[1732798979526,0.104961,95274.0,95271.0,0.0886642]
[1732798979991,0.104962,95272.0,95271.0,0.0826642]
[1732798980248,0.209918,95275.0,95271.0,0.0826642]
[1732798980484,0.00166253,95279.0,95271.0,0.0856642]
[1732798980716,0.10496,95274.0,95271.0,0.0856642]
[1732798980935,0.001,95280.0,95271.0,0.0856642]
[1732798980936,0.314874,95276.0,95271.0,0.0826642]
[1732798981158,0.104962,95272.0,95271.0,0.0856642]
[1732798981388,0.10696,95274.0,95271.0,0.0906642]
[1732798981609,0.10596,95274.0,95271.0,0.0856642]
[1732798982076,0.104961,95273.0,95271.0,0.0906642]
[1732798982310,0.10662453,95272.0,95271.0,0.0042642]
[1732798982831,0.10662453,95272.0,95271.0,0.0092642]
[1732798983815,0.10662453,95272.0,95271.0,0.0062642]
[1732798984511,0.15937058,95272.0,95271.0,0.0062642]
[1732798984977,0.15937058,95272.0,95271.0,0.0042642]
[1732798985237,0.10662453,95272.0,95271.0,0.0042642]
[1732798985458,0.10762453,95272.0,95271.0,0.0092642]
[1732798986134,0.10662453,95272.0,95271.0,0.0042642]
[1732798986625,0.10662453,95272.0,95271.0,0.0052642]
[1732798986879,0.10662453,95272.0,95271.0,0.0022642]
[1732798987102,0.16027058,95272.0,95271.0,0.0052642]
[1732798987325,0.26311579,95272.0,95271.0,0.0052642]
[1732798987552,0.38605326,95272.0,95271.0,0.0022642]
[1732798988020,0.53778306,95272.0,95271.0,0.0022642]
[1732798988496,0.53878306,95272.0,95271.0,0.0012642]
[1732798988958,0.54278306,95272.0,95271.0,0.0012642]
[1732798989434,0.54178306,95272.0,95271.0,0.0012642]
[1732798989674,0.57178306,95272.0,95271.0,0.0012642]
[1732798990801,0.56778306,95272.0,95271.0,0.0012642]
[1732798991028,0.1136918,95272.0,95271.0,0.0012642]
[1732798991250,0.1176918,95272.0,95271.0,0.0012642]
[1732798991481,0.11935433,95272.0,95271.0,0.0012642]
[1732798991961,0.0057298,95272.0,95271.0,0.0012642]
[1732798992187,0.0017298,95272.0,95271.0,0.0012642]
[1732798992412,0.1176918,95272.0,95271.0,0.0012642]
[1732798992658,0.0127298,95272.0,95271.0,0.0012642]
[1732798993155,0.0057298,95272.0,95271.0,0.0012642]
[1732798993414,0.0057298,95272.0,95271.0,0.37346884]
[1732798993649,0.0057298,95272.0,95271.0,0.68287532]
[1732798993891,0.00166253,95293.0,95285.0,0.104947]
[1732798994114,0.314805,95298.0,95285.0,0.104947]
[1732798994115,0.114786,95296.0,95286.0,0.09426243]
[1732798994352,0.00166253,95295.0,95285.0,0.104947]
[1732798994577,0.00166253,95295.0,95285.0,0.09426243]
[1732798994804,0.209862,95301.0,95286.0,0.104946]
[1732798994805,0.00166253,95297.0,95286.0,0.104946]
[1732798995055,0.104936,95296.0,95286.0,0.104946]
[1732798995291,0.00166253,95295.0,95285.0,0.09526243]
[1732798995532,0.104937,95296.0,95285.0,0.001]
[1732798995776,0.209862,95301.0,95285.0,0.002]
[1732798995777,0.00166253,95295.0,95285.0,0.002]
[1732798996011,0.00166253,95295.0,95285.0,0.105948]
[1732798996252,0.104938,95294.0,95286.0,0.105947]
[1732798996492,0.00166253,95294.0,95286.0,0.105947]
[1732798996737,0.10660053,95294.0,95287.0,0.104946]
[1732798996965,0.00166253,95294.0,95287.0,0.104946]
[1732798997188,0.00166253,95296.0,95286.0,0.001]
[1732798997646,0.209878,95294.0,95286.0,0.001]
[1732798997878,0.00166253,95293.0,95288.0,0.104944]
[1732798998166,0.209812,95324.0,95289.0,0.185043]
[1732798998167,0.0098588,95306.0,95289.0,0.185043]
[1732798998386,0.104931,95301.0,95289.0,0.185043]
[1732798998606,0.00166253,95300.0,95289.0,0.185043]
[1732798998826,0.10659353,95300.0,95289.0,0.185043]
[1732798999319,0.104935,95297.0,95289.0,0.185043]
[1732798999554,0.209859,95302.0,95289.0,0.185043]
[1732798999555,0.00166253,95296.0,95289.0,0.0801]
[1732798999776,0.00166253,95296.0,95289.0,0.185043]
[1732799000232,0.10659953,95296.0,95289.0,0.185043]
[1732799000932,0.10659953,95296.0,95289.0,0.187043]
[1732799001149,0.104937,95295.0,95289.0,0.187043]
[1732799001376,0.10659953,95295.0,95289.0,0.187043]
[1732799001604,0.00166253,95295.0,95289.0,0.187043]
[1732799001838,0.209853,95305.0,95289.0,0.187043]
[1732799001839,0.104933,95299.0,95289.0,0.187043]
[1732799002095,0.00166253,95298.0,95289.0,0.187043]
[1732799003181,0.0098588,95306.0,95289.0,0.187043]
[1732799003182,0.00166253,95305.0,95289.0,0.233043]
[1732799004313,0.0098588,95306.0,95289.0,0.233043]
[1732799004314,0.0098588,95306.0,95289.0,0.83352541]
[1732799004557,0.10491,95320.0,95289.0,1.0305714]
[1732799004778,0.00166253,95319.0,95289.0,0.84504653]
[1732799005214,0.0027296,95290.0,95289.0,0.84604653]
[1732799005435,0.0017296,95290.0,95289.0,0.84104653]
[1732799005727,0.0027296,95290.0,95289.0,0.71094653]
[1732799005941,0.0037296,95290.0,95289.0,0.012]
[1732799006137,0.0037296,95290.0,95289.0,0.006]
[1732799006138,0.0027296,95290.0,95289.0,0.006]
[1732799006574,0.0027296,95290.0,95289.0,0.110943]
[1732799006809,0.0017296,95290.0,95289.0,0.104943]
[1732799007303,0.0017296,95290.0,95289.0,0.008]
[1732799007304,0.0027296,95290.0,95289.0,0.008]
[1732799007535,0.0037296,95290.0,95289.0,0.014]
[1732799007762,0.0017296,95290.0,95287.0,0.104945]
[1732799008017,0.0017296,95290.0,95289.0,0.005]
[1732799008254,0.0027296,95290.0,95289.0,0.011]
[1732799008694,0.0027296,95290.0,95289.0,0.006]
[1732799009355,0.0027296,95290.0,95289.0,0.110943]
[1732799010108,0.0037296,95290.0,95289.0,0.006]
[1732799010553,0.0027296,95290.0,95289.0,0.110943]
[1732799010772,0.0027296,95290.0,95289.0,0.006]
[1732799010988,0.0037296,95290.0,95289.0,0.011]
[1732799012155,0.0037296,95290.0,95289.0,0.115943]
[1732799012619,0.0037296,95290.0,95289.0,0.50248821]
[1732799013150,0.1258,95334.0,95307.0,0.048]
[1732799013370,0.0099274,95328.0,95314.0,0.0757]
[1732799013595,0.0099274,95328.0,95323.0,0.104906]
[1732799013847,0.104897,95332.0,95314.0,0.0757]
[1732799014086,0.209775,95340.0,95315.0,0.00185686]
[1732799014311,0.00166253,95342.0,95322.0,0.01]
[1732799014550,0.10488,95347.0,95320.0,0.15169766]
[1732799014551,0.007,95334.0,95333.0,0.104895]
[1732799015055,0.0099177,95347.0,95346.0,0.104881]
[1732799015283,0.104868,95358.0,95340.0,0.209774]
[1732799015528,0.104868,95358.0,95341.0,0.11470156]
[1732799015529,0.00166253,95358.0,95341.0,0.11470156]
[1732799015765,0.0017294,95368.0,95341.0,0.11470156]
[1732799015766,0.0098094,95360.0,95341.0,0.11470156]
[1732799015981,0.104866,95359.0,95349.0,0.104876]
[1732799016197,0.104866,95359.0,95351.0,0.104875]
[1732799016413,0.104867,95359.0,95352.0,0.104873]
[1732799016641,0.104867,95359.0,95353.0,0.104873]
[1732799016861,0.104867,95359.0,95341.0,0.11284521]
[1732799016862,0.104875,95351.0,95341.0,0.02139176]
[1732799017085,0.00339193,95368.0,95342.0,0.209771]
[1732799017345,0.20974,95357.0,95341.0,0.02139176]
[1732799017565,0.00166253,95356.0,95342.0,0.00185625]
[1732799017780,0.00166253,95360.0,95354.0,0.104871]
[1732799017995,0.00166253,95360.0,95351.0,0.209749]
[1732799017996,0.00166253,95364.0,95351.0,0.209749]
[1732799018207,0.104866,95360.0,95354.0,0.104871]
[1732799018423,0.104866,95360.0,95342.0,0.20977]
[1732799018424,0.2144434,95368.0,95345.0,0.01]
[1732799018655,0.2144434,95368.0,95341.0,0.01439176]
[1732799018656,0.21137853,95367.0,95347.0,0.01]
[1732799018891,0.209718,95366.0,95348.0,0.10470131]
[1732799019105,0.104862,95363.0,95355.0,0.209742]
[1732799019329,0.00166253,95365.0,95358.0,0.104867]
[1732799019566,0.104862,95363.0,95358.0,0.104867]
[1732799019783,0.10486,95365.0,95360.0,0.104865]
[1732799020028,0.10486,95365.0,95354.0,0.001]
[1732799020260,0.10486,95365.0,95358.0,0.104866]
[1732799020493,0.104861,95364.0,95358.0,0.104866]
[1732799020727,0.104861,95364.0,95353.0,0.209744]
[1732799020728,0.104865,95361.0,95353.0,0.209744]
[1732799020950,0.0047294,95368.0,95353.0,0.209744]
[1732799021179,0.104863,95363.0,95349.0,0.0018561]
[1732799021437,0.001,95363.0,95349.0,0.0018561]
[1732799021663,0.001,95363.0,95355.0,0.10487]
[1732799021664,0.209727,95362.0,95355.0,0.10487]
[1732799021877,0.00166253,95365.0,95350.0,0.209753]
[1732799022081,0.104868,95358.0,95353.0,0.002]
[1732799022296,0.209724,95363.0,95353.0,0.002]
[1732799022297,0.00166253,95362.0,95353.0,0.002]
[1732799022552,0.104874,95353.0,95347.0,0.15]
[1732799022751,0.104874,95353.0,95349.0,0.001]
[1732799022752,0.104873,95353.0,95349.0,0.001]
[1732799023174,0.104876,95350.0,95347.0,0.15]
[1732799023392,0.0017294,95368.0,95347.0,0.15]
[1732799023393,0.104875,95352.0,95347.0,0.15]
[1732799023589,0.209745,95354.0,95353.0,0.001]
[1732799023590,0.314617,95354.0,95353.0,0.001]
[1732799024037,0.209759,95348.0,95343.0,0.15]
[1732799024269,0.104883,95344.0,95339.0,0.104888]
[1732799024492,0.209759,95348.0,95340.0,0.25284521]
[1732799024703,0.0017294,95368.0,95332.0,0.01]
[1732799024704,0.0017244,95363.0,95332.0,0.01]
[1732799024956,0.209759,95348.0,95336.0,0.15]
[1732799025167,0.104884,95344.0,95339.0,0.104888]
[1732799025396,0.104884,95344.0,95343.0,0.007]
[1732799025813,0.104886,95341.0,95336.0,0.254891]
[1732799026036,0.01425963,95363.0,95338.0,0.104889]
[1732799026250,0.209762,95346.0,95336.0,0.15]
[1732799026497,0.104881,95346.0,95340.0,0.104887]
[1732799026717,0.209755,95350.0,95343.0,0.013]
[1732799026718,0.001,95344.0,95343.0,0.013]
[1732799027137,0.105883,95344.0,95343.0,0.009]
[1732799027790,0.001,95344.0,95343.0,0.009]
[1732799027997,0.105883,95344.0,95343.0,0.009]
[1732799028202,0.104883,95344.0,95339.0,0.104888]
[1732799028413,0.209757,95348.0,95336.0,0.15]
[1732799028619,0.104886,95341.0,95337.0,0.10489]
[1732799028841,0.104881,95346.0,95341.0,0.104886]
[1732799029110,0.209758,95348.0,95343.0,0.009]
[1732799029111,0.001,95344.0,95343.0,0.009]
[1732799029363,0.105883,95344.0,95339.0,0.104887]
[1732799029555,0.105883,95344.0,95343.0,0.005]
[1732799030000,0.104883,95344.0,95343.0,0.005]
[1732799030443,0.104883,95344.0,95339.0,0.104887]
[1732799030670,0.104876,95350.0,95339.0,0.005]
[1732799030882,0.104875,95351.0,95346.0,0.10488]
[1732799031092,0.104875,95351.0,95344.0,0.209766]
[1732799031093,0.104878,95349.0,95344.0,0.104882]
[1732799031305,0.209724,95364.0,95348.0,0.209757]
[1732799031520,0.104872,95354.0,95349.0,0.104877]
[1732799031721,0.104874,95353.0,95348.0,0.104878]
[1732799031945,0.104874,95353.0,95349.0,0.104877]
[1732799032164,0.104874,95353.0,95345.0,0.209764]
[1732799032390,0.001,95350.0,95344.0,0.209764]
[1732799032607,0.001,95350.0,95346.0,0.10488]
[1732799032817,0.001,95350.0,95339.0,0.006]
[1732799032818,0.104878,95349.0,95345.0,0.104881]
[1732799033039,0.209746,95353.0,95342.0,0.20977]
[1732799033270,0.104876,95351.0,95346.0,0.10488]
[1732799033493,0.09383255,95434.0,95347.0,0.104879]
[1732799033494,0.0098262,95364.0,95347.0,0.104879]
[1732799033716,0.104874,95353.0,95347.0,0.104879]
[1732799033947,0.00166253,95362.0,95346.0,0.107881]
[1732799034172,0.104876,95351.0,95347.0,0.104879]
[1732799034378,0.00166253,95362.0,95347.0,0.20976]
[1732799034379,0.209731,95360.0,95347.0,0.20976]
[1732799034610,0.10487,95356.0,95348.0,0.104878]
[1732799034824,0.209717,95367.0,95339.0,0.0466]
[1732799035061,0.00166253,95366.0,95348.0,0.004]
[1732799035289,0.00166253,95366.0,95349.0,0.00185612]
[1732799035558,0.209724,95364.0,95356.0,0.104869]
[1732799035992,0.209724,95364.0,95332.0,0.01]
[1732799036217,0.00166253,95367.0,95349.0,0.209753]
[1732799036429,0.104869,95357.0,95352.0,0.104873]
[1732799036876,0.104873,95354.0,95349.0,0.104877]
[1732799037102,0.104863,95362.0,95349.0,0.104877]
[1732799037311,0.00438693,95363.0,95349.0,0.104877]
[1732799037518,0.104872,95355.0,95343.0,0.00185611]
[1732799037726,0.314609,95357.0,95349.0,0.104877]
[1732799037931,0.10487,95356.0,95349.0,0.104877]
[1732799038143,0.104872,95354.0,95349.0,0.003]
[1732799038373,0.00338693,95363.0,95349.0,0.003]
[1732799038580,0.104876,95350.0,95349.0,0.003]
[1732799038793,0.0017244,95363.0,95349.0,0.004]
[1732799038794,0.104873,95353.0,95349.0,0.004]
[1732799038996,0.104876,95350.0,95349.0,0.003]
[1732799039410,0.104876,95350.0,95349.0,0.005]
[1732799040542,0.10653853,95350.0,95349.0,0.008]